[Event "FIDE World School-ch O-15 2025"]
[Site "Vrnjacka Banja"]
[Date "2025.03.27"]
[Round "8.1"]
[White "Scheglov, Gleb"]
[Black "Tulendinov, Dinmukhammed"]
[Result "1-0"]
[Annotator "TA"]
[ECO "A62"]
[WhiteElo "2306"]
[BlackElo "2173"]
[PlyCount "103"]
[EventDate "2025.03.19"]
[EventType "swiss"]
[EventCountry "SRB"]
[SourceTitle "playchess.com"]
[Source "ChessBase"]
[SourceQuality "1"]
[TimeControl "5400+30"]

{[%evp 18,103,13,12,72,31,53,19,36,27,54,25,25,29,19,19,19,19,15,15,15,18,104,36,58,49,58,62,38,62,65,47,59,58,68,56,61,45,43,37,56,26,46,32,65,9,32,24,45,-8,30,30,52,18,29,31,53,46,66,0,12,4,0,0,0,-36,45,22,278,278,278,261,388,365,616,429,710,677,618,105,84,93,2382,1663,2500,1760,29982,5069]} 1. d4 {[%emt 0:03:03]} Nf6 {[%emt 0:00:07]} 2. c4 {[%emt 0:01:04]} e6 {[%emt 0:00:30]} 3. Nf3 {[%emt 0:00:07]} c5 {[%emt 0:00:05]} 4. d5 {[%emt 0:00:10]} d6 {[%emt 0:00:17]} 5. Nc3 {[%emt 0:05:17]} exd5 {[%emt 0:01:08]} 6. cxd5 {[%emt 0:00:03]} g6 {[%emt 0:00:16]} 7. g3 {[%emt 0:00:10]} Bg7 {[%emt 0:00:05]} 8. Bg2 {[%emt 0:00:05]} O-O {[%emt 0:00:04]} 9. O-O {[%emt 0:00:07]} Re8 {[%emt 0:00:07]} 10. Re1 {[%emt 0:00:07]} h6 {[%emt 0:00:49] A62: Modern Benoni: Fianchetto Variation without early ...Nbd7.} (10... Nbd7 $11 {remains equal.}) 11. h3 {[%emt 0:05:37]} Nbd7 {[%emt 0:04:01]} 12. Nd2 {[%emt 0:10:40]} a6 {[%emt 0:20:03] The position is equal.} 13. a4 {[%emt 0:00:28]} Rb8 {[%emt 0:03:46]} 14. Nc4 {[%emt 0:08:10]} Ne5 {[%emt 0:02:25]} 15. Nxe5 {[%emt 0:04:17]} Rxe5 {[%emt 0:00:11]} 16. a5 $146 {[%emt 0:00:10]} ({Predecessor:} 16. e4 Re8 17. Bf4 Nh5 18. Be3 b5 19. axb5 axb5 20. Qd2 b4 21. Ne2 Nf6 22. Bxh6 Nxe4 23. Bxe4 Rxe4 24. Bxg7 Kxg7 {0-1 Janik,I (2525)-Halkias,S (2527) Wch Rapid Warsaw 2021 (10)}) 16... Re8 {[%emt 0:16:51]} 17. Bd2 {[%emt 0:17:31]} b5 {[%emt 0:20:01]} 18. axb6 {[%emt 0:00:10]} Qxb6 {[%emt 0:00:09]} 19. Ra2 {[%emt 0:01:23]} Nd7 {[%emt 0:03:25]} (19... g5 $11) 20. Qa4 {[%emt 0:04:08]} ({White should try} 20. Ne4 $1 $16) 20... Qb3 {[%emt 0:06:33]} 21. Qxb3 $1 {[%emt 0:08:18]} Rxb3 {[%emt 0:00:17]} 22. Ne4 {[%emt 0:00:36]} Bf8 {[%emt 0:00:06]} 23. Bc3 {[%emt 0:00:29]} Rb8 {[%emt 0:02:02]} 24. g4 {[%emt 0:05:53]} Bb7 {[%emt 0:03:01]} 25. Rd1 {[%emt 0:00:12]} Be7 {[%emt 0:01:34]} 26. e3 {[%emt 0:02:23]} Rf8 {[%emt 0:03:29]} 27. Raa1 {[%emt 0:04:05] White has more active pieces.} f5 {[%emt 0:06:19]} 28. gxf5 {[%emt 0:00:45]} Rxf5 {[%emt 0:00:30][%cal Od7b6]} 29. Ng3 {[%emt 0:00:32]} (29. Ba5 $5) 29... Rff8 {[%emt 0:00:33]} 30. Ra4 {[%emt 0:00:44]} Nf6 {[%emt 0:02:17]} 31. h4 {[%emt 0:02:02]} (31. Ne2 $14) 31... Bc8 $11 {[%emt 0:00:36]} 32. Rd2 {[%emt 0:01:52]} h5 {[%emt 0:00:54]} 33. f3 {[%emt 0:06:59]} (33. Ne2 $14) 33... Ra8 {[%emt 0:02:02]} 34. Bf1 {[%emt 0:02:19]} Kh7 {[%emt 0:01:01]} 35. Rf4 {[%emt 0:02:38]} Bb7 {[%emt 0:00:39]} 36. Bc4 {[%emt 0:00:06]} Kh6 {[%emt 0:00:35]} 37. Ne4 {[%emt 0:02:02]} Nxe4 {[%emt 0:01:01]} 38. fxe4 {[%emt 0:01:35]} (38. Rxe4 $14 Rf7 39. Rg2) 38... Rxf4 {[%emt 0:01:06]} 39. exf4 {[%emt 0:00:01]} Bxh4 {[%emt 0:00:01]} 40. Rg2 {[%emt 0:01:01] Repels Bg3} Rf8 {[%emt 0:00:25]} 41. e5 {[%emt 0:00:37]} dxe5 {[%emt 0:01:08]} (41... Rxf4 $15 42. Bd3 Rg4 (42... Bxd5 43. Rxg6+ Kh7 44. Rf6+ Re4 45. Rxd6 $18) (42... Bg5 43. exd6 Rg4 44. Rxg4 $11) 43. Bd2+ Bg5 44. Bxg5+ Kxg5 (44... Rxg5 45. Rxg5 Kxg5 46. exd6 $17) 45. Rxg4+ hxg4 46. exd6 Kf6 (46... Bxd5 $2 47. d7 $18)) 42. fxe5 $14 {[%emt 0:00:53]} Bg5 $2 {[%emt 0:00:17][%mdl 8192]} (42... Rf5 $1 $11) 43. Bd2 $1 $18 {[%emt 0:01:29]} Bxd2 {[%emt 0:00:02]} 44. Rxd2 {[%emt 0:00:01][%mdl 4096] Endgame KRB-KRB. Black is a pawn up.} Rf4 {[%emt 0:00:59] [#]} (44... Bxd5 {might work better.} 45. Rxd5 (45. Bxd5 Rd8 $18) 45... Kg5 46. e6+ (46. Bxa6 Kf4 $18) (46. Rxc5 h4 $18) 46... Kf6 47. Rxc5 (47. Bxa6 Re8 $18) 47... Re8) 45. d6 $1 {[%emt 0:00:30][%cal Bd5d6,Bd6d7][%mdl 32]} Rg4+ $2 {[%emt 0:00:01]} (45... Rxc4 $2 46. d7 Rg4+ 47. Kh2 Rh4+ 48. Kg3 Rg4+ 49. Kh3 $18) (45... Bc8) 46. Kf2 {[%emt 0:00:40]} Rxc4 {[%emt 0:00:46] KRB-KR} (46... Rf4+ $142 47. Ke3 Re4+ (47... Rxc4 $2 48. d7 $18) 48. Kd3 Rd4+ 49. Kc3 Bc6 (49... Rxd2 $2 50. Kxd2 Bc8 51. e6 $18)) 47. d7 {[%emt 0:00:02]} Rf4+ {[%emt 0:00:01]} 48. Kg3 $2 {[%emt 0:00:41]} (48. Ke2 $18) 48... Rf8 $16 {[%emt 0:01:10]} 49. e6 {[%emt 0:00:21][%cal Be5e6,Be6e7][%mdl 1056] and e7 should not be overlooked White has strong compensation.} (49. d8=B $2 Rf3+ 50. Kh2 Re3 $19) 49... Kg5 $2 {[%emt 0:00:04][%mdl 8192]} (49... Bc6 $16) 50. e7 $18 {[%emt 0:01:06]} (50. d8=R h4+ 51. Kh2 Rf1 $14) ({Weaker is} 50. d8=Q+ Rxd8 51. Rxd8 Kf6 $16) ({Worse is} 50. d8=B+ Kh6 $15) 50... Rf3+ {[%emt 0:00:14]} 51. Kh2 {[%emt 0:00:07]} Rf1 {[%emt 0:00:58] [#]} 52. Rg2+ $1 {[%emt 0:00:29][%mdl 512] Weighted Error Value: White=0.31/Black=0.87  Loses game:     	---       	Black=2      Mistake:       	White=4     	Black=5      Inaccurate:     	White=7     	Black=4      OK:         	White=12    	Black=10     Best:        	White=3     	---        Strong:       	White=3     	---} 1-0

[Event "FIDE World School-ch O-15 2025"]
[Site "Vrnjacka Banja"]
[Date "2025.03.27"]
[Round "8.2"]
[White "Tabatadze, Erekle"]
[Black "Ashikmamutov, Saidkhon"]
[Result "1/2-1/2"]
[Annotator "TA"]
[ECO "E46"]
[WhiteElo "2180"]
[BlackElo "1978"]
[PlyCount "126"]
[EventDate "2025.03.19"]
[EventType "swiss"]
[EventCountry "SRB"]
[SourceTitle "playchess.com"]
[Source "ChessBase"]
[SourceQuality "1"]
[TimeControl "5400+30"]

{[%evp 13,126,14,14,-1,-15,-13,6,-4,0,-35,-33,-27,-35,-40,0,0,-2,-8,0,0,12,-10,0,0,0,4,14,4,38,37,41,42,37,37,58,37,69,62,72,52,68,53,53,44,65,63,124,103,125,44,62,37,63,49,81,65,91,97,196,196,214,254,280,128,142,-12,-18,-114,-70,-62,25,25,35,34,9,0,16,9,55,25,25,24,25,25,42,0,6,9,6,3,11,11,50,31,35,34,114,114,114,114,230,198,208,174,156,150,210,156,171,8,8,8,8,8,8]} 1. d4 {[%emt 0:00:20]} Nf6 {[%emt 0:00:21]} 2. c4 {[%emt 0:01:19]} e6 {[%emt 0:00:03]} 3. Nc3 {[%emt 0:00:16]} Bb4 {[%emt 0:00:07]} 4. e3 {[%emt 0:00:16]} O-O {[%emt 0:00:06]} 5. Nge2 {[%emt 0:00:58]} Re8 {[%emt 0:00:09]} 6. a3 {[%emt 0:00:07]} Bf8 {[%emt 0:00:05]} 7. d5 {[%emt 0:00:14]} a5 {[%emt 0:00:06]} 8. g3 {[%emt 0:00:11] E46: Nimzo-Indian: Rubinstein: 4 e3 0-0 5 Ne2 without early Bd3.} Na6 {[%emt 0:00:18][%cal Bb8a6,Ba6c5,Bc5d3,Bd3c1][%mdl 32]} 9. Bg2 {[%emt 0:00:14]} exd5 {[%emt 0:00:05]} 10. cxd5 {[%emt 0:00:05]} Nc5 {[%emt 0:00:35]} 11. b3 {[%emt 0:00:50]} b6 $1 {[%emt 0:00:09]} 12. Ra2 {[%emt 0:06:54]} Ba6 {[%emt 0:00:31] [#] aiming for ...Nd3+.} 13. O-O {[%emt 0:03:16]} Nd3 {[%emt 0:15:19] was the old line (13...Nfe4).} 14. Rd2 {[%emt 0:04:24]} Nxc1 {[%emt 0:00:15]} 15. Qxc1 {[%emt 0:00:10]} Rc8 {[%emt 0:01:20]} 16. Rfd1 {[%emt 0:07:00]} Qe7 {[%emt 0:08:55]} 17. Ra2 $146 {[%emt 0:05:02]} ({Predecessor:} 17. a4 h6 18. Nb5 Qe5 19. Ned4 Ne4 20. Rc2 Bc5 21. Nc3 Nxc3 22. Rxc3 Bb4 23. Rc2 {½-½ Sharpe,S (2329)-Harvey,D (2333) ENG MT-Bowyer email 2017}) 17... c6 {[%emt 0:17:08]} 18. dxc6 {[%emt 0:17:40]} dxc6 {[%emt 0:00:04]} 19. Nd4 {[%emt 0:02:49]} c5 {[%emt 0:05:09]} 20. Ndb5 {[%emt 0:01:13]} Qe5 {[%emt 0:12:11]} 21. Na7 {[%emt 0:06:11] A dynamic duo of knights.} (21. Rad2 c4 22. bxc4 Rxc4 $19) 21... Rc7 {[%emt 0:01:33]} 22. Ncb5 {[%emt 0:00:54]} Bxb5 {[%emt 0:10:10]} 23. Nxb5 {[%emt 0:00:10]} Rcc8 {[%emt 0:00:02][%cal Bc7c8,Bc8d8,Bd8d7][%mdl 32]} 24. Rad2 {[%emt 0:01:47]} Qb8 {[%emt 0:04:27]} 25. Qc4 {[%emt 0:19:46]} Rcd8 {[%emt 0:10:04]} 26. Bd5 {[%emt 0:01:37] White has more active pieces.} Rd7 {[%emt 0:01:02]} 27. a4 {[%emt 0:02:03]} Qe5 {[%emt 0:00:14]} 28. Kg2 {[%emt 0:04:07]} h6 {[%emt 0:05:10]} 29. Nc3 {[%emt 0:01:39]} g5 {[%emt 0:01:32]} (29... Qf5 $14) 30. Bc6 $16 {[%emt 0:02:33]} Rxd2 {[%emt 0:00:09]} 31. Rxd2 {[%emt 0:00:04]} (31. Bxe8 $1 $16 Rxf2+ 32. Kxf2 Qxe8 33. Nd5) 31... Rc8 $14 {[%emt 0:00:09] Black is weak on the light squares} 32. Bf3 {[%emt 0:01:18]} Kg7 {[%emt 0:01:46]} 33. Rd3 {[%emt 0:03:40]} Rb8 {[%emt 0:01:41]} 34. Nd5 {[%emt 0:01:32]} Ne8 {[%emt 0:01:21]} 35. Qa6 {[%emt 0:01:37]} b5 {[%emt 0:05:11]} 36. axb5 $18 {[%emt 0:01:23][%csl Ob5] White has a strong passed pawn} g4 {[%emt 0:00:05]} 37. Be2 {[%emt 0:05:21]} (37. Bxg4 $2 Qe4+ 38. Bf3 Qxd3 $19) 37... Rd8 {[%emt 0:00:47]} 38. Qc6 {[%emt 0:00:00]} (38. Qxa5 Rxd5 39. Kg1 Nf6 $17) (38. Nf4 $18 {and White stays clearly on top.} Qe4+ 39. f3) 38... Rd6 $16 {[%emt 0:00:24] [#]} 39. Qxc5 {[%emt 0:00:00]} (39. Qa8 $1 $16 {[%cal Ob5b6] And now b6! would win.} Qe4+ 40. Kg1) 39... Nf6 $36 {[%emt 0:00:14][%mdl 2048] Black wants to play ...Qe4+. White is under pressure.} 40. b6 {[%emt 0:00:44]} Rxd5 {[%emt 0:00:38]} 41. Rxd5 {[%emt 0:00:40]} Qxd5+ {[%emt 0:00:40]} ({Better is} 41... Nxd5 $15 42. Qc6 Qd6) 42. Qxd5 {[%emt 0:00:05]} Nxd5 {[%emt 0:00:01]} 43. b7 {[%emt 0:00:07]} Bd6 {[%emt 0:00:00]} 44. Bxg4 {[%emt 0:00:06]} Kf8 {[%emt 0:00:47]} 45. e4 {[%emt 0:01:03][%cal Be3e4,Be4e5][%mdl 1056] White has compensation.} Nb4 {[%emt 0:00:33]} (45... Nf6 $1 $11 46. Bf5 Bc7) 46. f4 {[%emt 0:00:17]} Nd3 {[%emt 0:00:16]} 47. e5 $1 {[%emt 0:00:35]} Bb8 {[%emt 0:00:01]} 48. Bf3 $1 {[%emt 0:00:44]} Ke7 {[%emt 0:00:57]} 49. Be4 {[%emt 0:01:08]} Nc5 {[%emt 0:00:30][%csl LRb3,LRe4]} 50. Bd5 {[%emt 0:00:03]} f6 {[%emt 0:00:26]} 51. exf6+ {[%emt 0:00:50]} Kxf6 {[%emt 0:00:01]} 52. Kf3 {[%emt 0:00:10]} Kf5 {[%emt 0:01:15]} 53. g4+ {[%emt 0:00:12]} Kf6 {[%emt 0:00:01]} 54. h4 {[%emt 0:00:39][%cal Bh2h4,Bh4g5][%mdl 32]} a4 {[%emt 0:01:01]} (54... Ba7 $14) 55. bxa4 {[%emt 0:00:25]} Nxa4 {[%emt 0:00:01]} 56. g5+ {[%emt 0:00:11]} hxg5 {[%emt 0:00:54]} (56... Kg7 $16 {was necessary.}) 57. hxg5+ {[%emt 0:00:45]} Kg7 {[%emt 0:01:11]} 58. f5 {[%emt 0:00:05]} Nc5 {[%emt 0:00:35]} 59. f6+ {[%emt 0:01:06]} Kg6 {[%emt 0:00:34]} 60. Kg4 {[%emt 0:01:35]} Be5 {[%emt 0:00:33]} 61. f7 $2 {[%emt 0:00:00]} ({And not} 61. Bc6 Nxb7 62. Be4+ (62. Bxb7 Bxf6 63. Be4+ Kg7 $16) (62. Be8+ Kh7 $16) 62... Kf7 $14) (61. Bg2 $18) 61... Kg7 {[%emt 0:00:00] The position is equal.} 62. Kf5 {[%emt 0:00:24]} Bd6 {[%emt 0:00:01]} 63. g6 {[%emt 0:00:30]} Nxb7 {[%emt 0:00:03] Weighted Error Value: White=0.22 (precise) /Black=0.21 (precise)   Missed win:     	White=1     	---        Mistake:       	White=4     	Black=6      Inaccurate:     	White=3     	Black=8      OK:         	White=23    	Black=23     Best:        	White=6     	Black=3      Strong:       	White=2     	Black=1} 1/2-1/2

[Event "FIDE World School-ch O-15 2025"]
[Site "Vrnjacka Banja"]
[Date "2025.03.27"]
[Round "8.3"]
[White "Kabinazar, Nurmukhammed"]
[Black "Khaleev, Timofey D"]
[Result "1-0"]
[Annotator "NA RC"]
[ECO "B30"]
[WhiteElo "2057"]
[BlackElo "1919"]
[PlyCount "41"]
[EventDate "2025.03.19"]
[EventType "swiss"]
[EventCountry "SRB"]
[SourceTitle "playchess.com"]
[Source "ChessBase"]
[SourceQuality "1"]
[TimeControl "5400+30"]

1. e4 {[%emt 0:00:05]} c5 {[%emt 0:00:03]} 2. Nf3 {[%emt 0:00:11]} Nc6 {[%emt 0:00:03]} 3. Bb5 {[%emt 0:00:26]} e6 {[%emt 0:00:04]} 4. O-O {[%emt 0:05:36]} Nge7 {[%emt 0:00:06]} 5. Re1 {[%emt 0:03:20]} a6 {[%emt 0:00:52]} 6. Bf1 {[%emt 0:00:30]} b6 {[%emt 0:01:00]} 7. b3 {[%emt 0:02:21]} Nd4 {[%emt 0:07:18]} 8. Bb2 {[%emt 0:04:38]} Nec6 {[%emt 0:05:27]} 9. c3 {[%emt 0:01:54]} Nxf3+ {[%emt 0:00:32]} 10. Qxf3 {[%emt 0:00:09]} Be7 {[%emt 0:02:47]} 11. d4 {[%emt 0:02:05]} cxd4 {[%emt 0:01:17]} 12. cxd4 {[%emt 0:00:05]} d5 {[%emt 0:01:34]} 13. Nc3 {[%emt 0:13:10]} Nb4 {[%emt 0:09:05]} 14. exd5 {[%emt 0:06:59]} Nxd5 {[%emt 0:27:27]} 15. Bc4 {[%emt 0:02:18]} Nc7 {[%emt 0:06:43]} 16. d5 {[%emt 0:08:54]} Bb7 {[%emt 0:10:00]} 17. Qg3 {[%emt 0:07:03]} b5 {[%emt 0:07:43]} 18. dxe6 {[%emt 0:06:40]} Nxe6 {[%emt 0:01:30]} 19. Bxe6 {[%emt 0:01:40]} fxe6 {[%emt 0:00:05]} 20. Qxg7 {[%emt 0:00:39]} Rf8 {[%emt 0:00:25]} 21. Rxe6 {[%emt 0:01:13]} 1-0